bitfinex-derivatives/quotes_BNBF0:USTF0_20250305
["timestamp","ask_amount","ask_price","bid_price","bid_amount"]
[1741217260621,0.96455,598.18,597.4,0.162]
[1741217261028,0.29113786,598.17,597.4,0.162]
[1741217263029,1.25568786,598.17,597.4,0.162]
[1741217263227,0.29113786,598.17,597.4,0.162]
[1741217263423,0.96455,598.16,597.4,0.162]
[1741217263835,0.29114639,598.15,597.4,0.162]
[1741217264221,1.25569639,598.15,597.4,0.162]
[1741217264426,0.29114639,598.15,597.4,0.162]
[1741217265328,1.25569639,598.15,597.4,0.162]
[1741217265928,1.20886849,598.14,597.4,0.162]
[1741217266436,2.17341849,598.14,597.4,0.162]
[1741217267323,0.96455,598.13,597.4,0.162]
[1741217267522,1.20886849,598.12,597.4,0.162]
[1741217267726,2.17341849,598.12,597.4,0.162]
[1741217267921,1.74255,598.11,597.4,0.162]
[1741217268123,0.778,598.11,597.4,0.162]
[1741217268327,1.74255,598.11,597.4,0.162]
[1741217268528,0.778,598.11,597.4,0.162]
[1741217268725,0.96455,598.1,597.4,0.162]
[1741217268927,2.17341849,598.1,597.4,0.162]
[1741217269128,1.20886849,598.09,597.4,0.162]
[1741217269431,0.96455,598.08,597.4,0.162]
[1741217269632,1.20886849,598.09,597.4,0.162]
[1741217269827,1.20886849,598.08,597.4,0.162]
[1741217270430,2.17341849,598.07,597.4,0.162]
[1741217270631,0.96455,598.06,597.4,0.162]
[1741217270823,2.17341849,598.06,597.4,0.162]
[1741217271027,0.96455,598.05,597.4,0.162]
[1741217271225,0.96455,598.04,597.4,0.162]
[1741217271424,0.96455,598.03,597.4,0.162]
[1741217271630,0.96455,598.02,597.4,0.162]
[1741217271838,0.96661804,598.01,597.4,0.162]
[1741217272024,0.96661804,598.0,597.4,0.162]
[1741217272227,0.96661804,597.99,597.4,0.162]
[1741217272429,0.96661804,598.01,597.4,0.162]
[1741217272625,1.20886849,597.98,597.4,0.162]
[1741217273127,1.20886849,597.99,597.4,0.162]
[1741217273725,2.17548653,597.98,597.4,0.162]
[1741217273929,0.96661804,597.97,597.4,0.162]
[1741217274231,2.17548653,597.97,597.4,0.162]
[1741217274532,0.96661804,597.96,597.4,0.162]
[1741217274731,2.17548653,598.03,597.4,0.162]
[1741217274933,0.96661804,598.02,597.4,0.162]
[1741217275126,0.96661804,598.01,597.4,0.162]
[1741217275330,0.96661804,598.0,597.4,0.162]
[1741217275527,0.96661804,597.99,597.4,0.162]
[1741217275830,0.96661804,597.98,597.4,0.162]
[1741217276926,0.96661804,598.02,597.4,0.162]
[1741217277140,0.96661804,598.01,597.4,0.162]
[1741217277331,0.96661804,598.0,597.4,0.162]
[1741217277631,0.96661804,597.99,597.4,0.162]
[1741217277831,0.96661804,598.01,597.4,0.162]
[1741217278032,2.17548653,598.0,597.4,0.162]
[1741217278326,0.96661804,597.99,597.4,0.162]
[1741217278833,0.96661804,598.01,597.4,0.162]
[1741217279026,1.20886849,598.0,597.4,0.162]
[1741217279228,2.17548653,598.0,597.4,0.162]
[1741217279429,0.96661804,597.99,597.4,0.162]
[1741217279629,2.17548653,598.03,597.4,0.162]
[1741217279829,0.96661804,598.02,597.4,0.162]
[1741217280029,0.96661804,598.01,597.4,0.162]
[1741217280826,1.20886849,598.0,597.4,0.162]
[1741217281425,0.96661804,598.0,597.4,0.162]
[1741217282430,0.96661804,598.05,597.4,0.162]
[1741217282931,0.2912073,598.04,597.4,0.162]
[1741217283627,1.20886849,598.06,597.4,0.162]
[1741217284225,2.17430691,598.06,597.4,0.162]
[1741217284430,0.96543842,598.05,597.4,0.162]
[1741217284631,0.96543842,598.08,597.4,0.162]
[1741217285226,2.50987299,598.08,597.4,0.162]
[1741217285429,0.96543842,598.08,597.4,0.162]
[1741217285631,1.20886849,598.09,597.4,0.162]
[1741217286831,1.20886849,598.1,597.4,0.162]
[1741217290334,3.71874148,598.1,597.4,0.162]
[1741217290532,2.50987299,598.09,597.4,0.162]
[1741217290831,2.17430691,598.09,597.4,0.162]
[1741217291031,0.96543842,598.08,597.4,0.162]
[1741217291234,1.20886849,598.09,597.4,0.162]
[1741217292234,0.96533749,598.08,597.4,0.162]
[1741217292439,0.96533749,598.07,597.4,0.162]
[1741217292741,2.17420598,598.07,597.4,0.162]
[1741217293040,0.96533749,598.06,597.4,0.162]
[1741217293239,1.20886849,598.07,597.4,0.162]
[1741217293240,2.17420598,598.09,597.4,0.162]
[1741217293536,0.96533749,598.08,597.4,0.162]
[1741217293840,0.29117319,598.08,597.4,0.162]
[1741217294034,4.00991916,598.08,597.4,0.162]
[1741217294236,2.50987748,598.07,597.4,0.162]
[1741217294634,1.20886849,598.06,597.4,0.162]
[1741217294837,3.71874597,598.06,597.4,0.162]
[1741217295040,3.71874597,598.05,597.4,0.162]
[1741217295239,2.50987748,598.04,597.4,0.162]
[1741217295442,0.96533749,598.04,597.4,0.162]
[1741217295743,1.20886849,598.03,597.4,0.162]
[1741217295938,2.17420598,598.03,597.4,0.162]
[1741217296144,0.96533749,598.02,597.4,0.162]
[1741217296341,2.75340848,598.07,597.4,0.162]
[1741217296342,2.50987748,598.06,597.4,0.162]
[1741217296640,1.20886849,598.05,597.4,0.162]
[1741217296837,2.17420598,598.05,597.4,0.162]
[1741217297037,3.71874597,598.05,597.4,0.162]
[1741217297341,2.50987748,598.04,597.4,0.162]
[1741217297538,0.96533749,598.04,597.4,0.162]
[1741217297741,1.20886849,598.03,597.4,0.162]
[1741217298242,0.29117684,598.06,597.4,0.162]
[1741217298436,1.25651433,598.06,597.4,0.162]
[1741217298640,2.46538282,598.06,597.4,0.162]
[1741217298843,0.96533749,598.05,597.4,0.162]
[1741217299037,0.29117684,598.06,597.4,0.162]
[1741217299238,0.96533749,598.05,597.4,0.162]
[1741217299844,0.96533749,598.07,597.4,0.162]
[1741217300143,1.25651677,598.06,597.4,0.162]
[1741217300344,0.96533749,598.05,597.4,0.162]
[1741217300941,2.17420598,598.05,597.4,0.162]
[1741217301338,0.96533749,598.04,597.4,0.162]
[1741217302148,1.20886849,598.05,597.4,0.162]
[1741217302341,0.29117928,598.06,597.4,0.162]
[1741217302544,0.96533749,598.05,597.4,0.162]
[1741217302740,0.96533749,598.04,597.4,0.162]
[1741217303045,0.96533749,598.05,597.4,0.162]
[1741217303238,0.96603081,598.05,597.4,0.162]
[1741217303440,0.96603081,598.04,597.4,0.162]
[1741217303641,2.1748993,598.05,597.4,0.162]
[1741217303840,0.96603081,598.04,597.4,0.162]
[1741217304440,2.1748993,598.05,597.4,0.162]
[1741217304948,0.96603081,598.04,597.4,0.162]
[1741217305649,0.96603081,598.03,597.4,0.162]
[1741217305948,1.20886849,598.03,597.4,0.162]
[1741217308348,1.20886849,598.02,597.4,0.162]
[1741217308748,1.20886849,598.01,597.4,0.162]
[1741217308952,2.17537007,598.03,597.4,0.162]
[1741217309251,0.96650158,598.02,597.4,0.162]
[1741217309551,2.17537007,598.02,597.4,0.162]
[1741217309751,0.96650158,598.01,597.4,0.162]
[1741217309946,1.20886849,598.02,597.4,0.162]
[1741217310152,1.20886849,598.0,597.4,0.162]
[1741217310550,0.96650158,598.06,597.4,0.162]
[1741217310853,0.96650158,598.05,597.4,0.162]
[1741217311051,0.29119024,598.15,597.4,0.162]
[1741217311052,2.17537007,598.04,597.4,0.162]
[1741217311253,0.96650158,598.03,597.4,0.162]
[1741217311449,2.17537007,598.02,597.4,0.162]
[1741217311654,0.96650158,598.01,597.4,0.162]
[1741217312050,1.20886849,598.0,597.4,0.162]
[1741217312254,2.17537007,598.0,597.4,0.162]
[1741217312450,0.96650158,597.99,597.4,0.162]
[1741217312755,2.51451022,598.08,597.4,0.162]
[1741217312950,1.20886849,597.98,597.4,0.162]
[1741217313456,0.29115491,598.17,597.4,0.162]
[1741217313457,1.20886849,597.97,597.4,0.162]
[1741217313955,0.96650158,598.03,597.4,0.162]
[1741217314158,1.20886849,598.04,597.4,0.162]
[1741217314756,0.96791951,598.08,597.4,0.162]
[1741217315051,1.20886849,598.08,597.4,0.162]
[1741217315257,0.96791951,598.07,597.4,0.162]
[1741217315450,2.176788,598.07,597.4,0.162]
[1741217315654,0.96791951,598.06,597.4,0.162]
[1741217316055,2.176788,598.06,597.4,0.162]
[1741217316252,0.96791951,598.05,597.4,0.162]
[1741217316455,0.96791951,598.09,597.4,0.162]
[1741217316753,2.176788,598.08,597.4,0.162]
[1741217316959,0.96791951,598.07,597.4,0.162]
[1741217317355,2.176788,598.1,597.4,0.162]
[1741217317552,0.96791951,598.09,597.4,0.162]
[1741217317759,1.20886849,598.08,597.42,1.24519262]
[1741217318058,2.176788,598.08,597.42,1.24519262]
[1741217318258,0.96791951,598.07,597.42,1.24519262]
[1741217318557,2.176788,598.1,597.42,1.24519262]
[1741217318763,0.96791951,598.09,597.42,1.24519262]
[1741217319064,1.20886849,598.09,597.42,1.24519262]
[1741217319267,2.176788,598.09,597.42,1.24519262]
[1741217319454,0.96791951,598.08,597.42,1.24519262]
[1741217319858,3.01758339,598.2,597.42,1.24519262]
[1741217320060,3.72477933,598.19,597.42,1.24519262]
[1741217320256,2.51591084,598.18,597.42,1.24519262]
[1741217320460,1.20886849,598.19,597.37,1.24519262]
[1741217320461,0.96791951,598.17,597.37,1.24519262]
[1741217320656,0.96791951,598.16,597.37,1.24519262]
[1741217320861,2.176788,598.15,597.37,1.24519262]
[1741217321057,0.96791951,598.14,597.37,1.24519262]
[1741217321264,0.96791951,598.13,597.38,0.162]
[1741217321457,0.96791951,598.12,597.38,0.162]
[1741217321659,2.176788,598.11,597.38,0.162]
[1741217321859,0.96791951,598.1,597.38,0.162]
[1741217322262,2.16686849,598.09,597.38,0.162]
[1741217322463,0.96791951,598.08,597.38,0.162]
[1741217322961,0.958,598.09,597.38,0.162]
[1741217325662,1.92512565,598.09,597.38,0.162]
[1741217326063,0.958,598.09,597.38,0.162]
[1741217332772,0.958,598.09,597.38,1.40719262]
[1741217335575,0.958,598.09,597.4,1.24519262]
[1741217337775,0.958,598.09,597.42,1.24519262]
[1741217340379,0.958,598.09,597.39,0.29111107]
[1741217344679,0.958,598.09,597.38,0.162]
[1741217344877,0.958,598.09,597.39,0.29112082]
[1741217347684,0.958,598.09,597.35,1.24519262]
[1741217347880,0.958,598.09,597.39,0.2911196]
[1741217348481,0.958,598.09,597.46,1.24519262]
[1741217351183,0.958,598.09,597.53,1.24519262]
[1741217355789,0.958,598.09,597.4,0.162]
[1741217355790,1.20886849,598.08,597.4,0.162]
[1741217356187,0.958,598.09,597.4,0.162]
[1741217358993,0.96728569,598.08,597.4,0.162]
[1741217359190,2.17404567,598.08,597.4,0.162]
[1741217359393,0.96728569,598.07,597.4,0.162]
[1741217359590,2.17404567,598.07,597.4,0.162]
[1741217359795,0.96728569,598.06,597.4,0.162]
[1741217360291,2.17404567,598.05,597.4,0.162]
[1741217360493,0.96728569,598.04,597.4,0.162]
[1741217361098,1.20675998,598.03,597.4,0.162]
[1741217361297,2.17404567,598.03,597.4,0.162]
[1741217361495,2.17404567,598.02,597.4,0.162]
[1741217361700,0.96728569,598.01,597.4,0.162]
[1741217362200,1.20675998,598.0,597.4,0.162]
[1741217362598,1.20675998,597.99,597.4,0.162]
[1741217363400,1.20675998,597.98,597.4,0.162]
[1741217364201,1.20675998,597.99,597.4,0.162]
[1741217365002,1.20675998,597.98,597.4,0.162]
[1741217365605,0.96728569,598.01,597.4,0.162]
[1741217365806,0.96728569,598.0,597.4,0.162]
[1741217366007,1.20675998,598.0,597.4,0.162]
[1741217366312,2.17486454,598.0,597.4,0.162]
[1741217366611,0.96810456,597.99,597.4,0.162]
[1741217366901,1.20675998,598.0,597.4,0.162]
[1741217367107,2.51707186,598.04,597.4,0.162]
[1741217367299,0.96810456,598.03,597.4,0.162]
[1741217367501,0.96810456,598.02,597.4,0.162]
[1741217367700,1.20675998,598.02,597.4,0.162]
[1741217367906,0.96809499,598.01,597.4,0.162]
[1741217368101,0.96809499,598.0,597.4,0.162]
[1741217368307,1.20675998,598.02,597.4,0.162]
[1741217369205,0.96822455,598.01,597.4,0.162]
[1741217369403,0.96822455,598.0,597.4,0.162]
[1741217369602,0.96822455,597.99,597.4,0.162]
[1741217369910,1.20675998,597.99,597.4,0.162]
[1741217370307,2.17498453,597.99,597.4,0.162]
[1741217370509,0.96822455,597.98,597.4,0.162]
[1741217370810,0.96822455,598.06,597.4,0.162]
[1741217371010,0.96822455,598.05,597.4,0.162]
[1741217371310,2.17498453,598.04,597.4,0.162]
[1741217371504,0.96822455,598.03,597.4,0.162]
[1741217371707,0.96822455,598.02,597.4,0.162]
[1741217372009,1.54915928,598.08,597.4,0.162]
[1741217372010,2.17498453,598.01,597.4,0.162]
[1741217372211,0.96822455,598.0,597.4,0.162]
[1741217372510,0.96822455,597.99,597.4,0.162]
[1741217372710,1.20675998,597.99,597.4,0.162]
[1741217372910,2.17498453,597.99,597.4,0.162]
[1741217373104,0.96822455,597.98,597.4,0.162]
[1741217373306,0.96822455,597.97,597.4,0.162]
[1741217373513,0.96822455,597.96,597.4,0.162]
[1741217373706,0.96822455,597.95,597.4,0.162]
[1741217373913,0.96822455,597.94,597.4,0.162]
[1741217374119,0.96822455,597.93,597.37,1.24721465]
[1741217374411,0.96822455,597.96,597.37,1.24721465]
[1741217374615,0.96822455,597.95,597.37,1.24721465]
[1741217374912,1.20675998,597.94,597.34,0.33481769]
[1741217375607,2.17498453,597.97,597.34,0.33481769]
[1741217375811,0.96822455,597.96,597.34,0.33481769]
[1741217376314,0.96822455,598.02,597.34,0.33481769]
[1741217376506,0.96822455,598.01,597.34,0.33481769]
[1741217376706,0.96822455,598.0,597.34,0.33481769]
[1741217376908,0.96822455,597.99,597.34,0.33481769]
[1741217377112,1.54922603,598.03,597.34,0.33481769]
[1741217377113,2.17498453,597.98,597.34,0.33481769]
[1741217377307,1.20675998,597.98,597.35,0.162]
[1741217377506,0.29117928,598.06,597.35,0.162]
[1741217377714,1.4978991,598.74,597.35,0.162]
[1741217377916,0.29118293,598.06,597.35,0.162]
[1741217378415,2.17592456,598.05,597.35,0.162]
[1741217378710,0.96810363,598.04,597.35,0.162]
[1741217378914,2.17592456,598.03,597.35,0.162]
[1741217379107,0.96810363,598.02,597.35,0.162]
[1741217379312,0.96810363,598.01,597.35,0.162]
[1741217379508,0.96810363,598.0,597.35,0.162]
[1741217379712,0.967985,597.99,597.35,0.162]
[1741217379914,0.967985,597.98,597.35,0.162]
[1741217380113,0.967985,598.0,597.35,0.162]
[1741217380316,0.967985,597.99,597.35,0.162]
[1741217381112,2.17580593,597.99,597.35,0.162]
[1741217381313,0.967985,597.98,597.35,0.162]
[1741217381911,0.967985,598.05,597.35,0.162]
[1741217382115,0.967985,598.04,597.35,0.162]
[1741217382315,0.967985,598.03,597.35,0.162]
[1741217382514,0.967985,598.02,597.35,0.162]
[1741217382815,2.17580593,598.01,597.35,0.162]
[1741217383017,0.967985,598.0,597.35,0.162]
[1741217384109,0.967985,598.01,597.35,0.162]
[1741217384311,0.967985,598.0,597.35,0.162]
[1741217384514,3.72458193,598.01,597.35,0.162]
[1741217384716,0.967985,598.0,597.35,0.162]
[1741217385215,2.17580593,598.0,597.35,0.162]
[1741217385416,0.967985,597.99,597.35,0.162]
[1741217385616,1.20782093,598.0,597.35,0.162]
[1741217385819,0.967985,598.0,597.35,0.162]
[1741217386019,2.75616238,598.02,597.35,0.162]
[1741217386020,0.967985,598.01,597.35,0.162]
[1741217386220,0.967985,598.0,597.35,0.162]
[1741217386519,1.20782093,598.0,597.35,0.162]
[1741217386719,2.17580593,598.0,597.35,0.162]
[1741217386920,0.967985,597.99,597.35,0.162]
[1741217387119,1.20782093,598.0,597.35,0.162]
[1741217387320,2.17580593,598.0,597.35,0.162]
[1741217387520,0.96764712,597.99,597.35,0.162]
[1741217388113,2.51591168,598.01,597.35,0.162]
[1741217388313,2.17546805,598.0,597.35,0.162]
[1741217388514,0.96764712,597.99,597.35,0.162]
[1741217389116,2.17546805,597.99,597.35,0.162]
[1741217389317,0.96764712,597.98,597.35,0.162]
[1741217389518,1.20782093,597.99,597.35,0.162]
[1741217390025,0.96764712,597.99,597.35,0.162]
[1741217390226,0.96764712,598.0,597.35,0.162]
[1741217391518,0.96764712,598.01,597.35,0.162]
[1741217391923,2.17546805,598.01,597.35,0.162]
[1741217392123,0.96764712,598.0,597.35,0.162]
[1741217392317,2.17546805,598.01,597.35,0.162]
[1741217392520,0.96764712,598.0,597.35,0.162]
[1741217392722,0.96764712,598.01,597.35,0.162]
[1741217393019,0.96764712,598.0,597.35,0.162]
[1741217393220,0.96764712,598.01,597.35,0.162]
[1741217393625,2.17546805,598.01,597.35,0.162]
[1741217393825,0.96764712,598.0,597.35,0.162]
[1741217394118,2.17546805,598.01,597.35,0.162]
[1741217394526,2.17546805,598.01,597.34,0.33481769]
[1741217395526,0.96757872,598.0,597.34,0.33481769]
[1741217395827,1.20782093,598.01,597.34,0.33481769]
[1741217396125,0.96757872,598.01,597.34,0.33481769]
[1741217396727,2.17539965,598.01,597.34,0.33481769]
[1741217396924,1.107,598.03,597.34,0.33481769]
[1741217396925,0.96757872,598.0,597.34,0.33481769]
[1741217397128,0.96757872,598.01,597.34,0.33481769]
[1741217397424,0.96757872,598.0,597.34,0.33481769]
[1741217397626,0.96757872,598.01,597.35,0.162]
[1741217397831,0.96757872,598.0,597.35,0.162]
[1741217398130,2.17539965,598.01,597.35,0.162]
[1741217398324,0.96757872,598.0,597.35,0.162]
[1741217399428,0.96757872,597.99,597.35,0.162]
[1741217399629,2.17539965,598.01,597.35,0.162]
[1741217399826,0.96757872,598.0,597.35,0.162]
[1741217400436,0.96757872,598.0,597.35,1.40921465]
[1741217401238,0.96757872,597.99,597.35,1.40921465]
[1741217401440,0.96757872,597.98,597.35,1.40921465]
[1741217401740,1.20782093,598.01,597.35,1.40921465]
[1741217401741,0.96757872,597.97,597.35,1.40921465]
[1741217401942,0.96757872,597.96,597.35,1.40921465]
[1741217402137,1.20782093,597.96,597.35,1.40921465]
[1741217402840,0.96757872,597.97,597.35,1.40921465]
[1741217403041,0.96757872,597.96,597.35,0.162]
[1741217403241,0.96757872,597.97,597.35,0.162]
[1741217403443,0.96757872,597.96,597.35,0.162]
[1741217403636,1.20782093,597.97,597.35,0.162]
[1741217404041,0.96757872,597.97,597.35,0.162]
[1741217404242,0.96757872,597.96,597.35,0.162]
[1741217404439,0.96757872,597.97,597.35,0.162]
[1741217404943,2.17539965,597.97,597.35,0.162]
[1741217405142,0.96757872,597.96,597.35,0.162]
[1741217405542,0.96757872,597.95,597.35,0.162]
[1741217405743,1.20782093,597.95,597.35,0.162]
[1741217405942,2.17539965,597.99,597.35,0.162]
[1741217406143,0.96757872,597.98,597.35,0.162]
[1741217406344,0.96757872,597.97,597.35,0.162]
[1741217406644,0.96757872,597.96,597.35,0.162]
[1741217407345,0.96757872,597.95,597.35,0.162]
[1741217408045,2.17539965,597.95,597.35,0.162]
[1741217408245,0.96757872,597.94,597.35,0.162]
[1741217408946,2.51604182,598.0,597.35,0.162]
[1741217409143,0.96757872,597.99,597.35,0.162]
[1741217409339,0.96757872,597.98,597.35,0.162]
[1741217409541,0.96757872,597.97,597.35,0.162]
[1741217409740,0.96757872,597.96,597.35,0.162]
[1741217410044,0.96757872,597.95,597.35,0.162]
[1741217410243,0.96757872,597.94,597.35,0.162]
[1741217410545,1.20782093,597.95,597.35,0.162]
[1741217410743,0.96757872,597.94,597.35,0.162]
[1741217411349,0.96757872,597.93,597.35,0.162]
[1741217411543,0.96757872,597.94,597.35,0.162]
[1741217411744,0.96757872,597.93,597.35,0.162]
[1741217411944,1.20782093,598.0,597.35,0.162]
[1741217412143,0.96757872,597.99,597.35,0.162]
[1741217412346,0.96757872,597.98,597.35,0.162]
[1741217412548,2.17539965,597.97,597.35,0.162]
[1741217412744,2.17539965,597.97,597.41,1.24721465]
[1741217412745,0.96757872,597.96,597.41,1.24721465]
[1741217412943,0.96757872,597.95,597.41,1.24721465]
[1741217413147,0.96757872,597.94,597.41,1.24721465]
[1741217413349,0.96757872,597.93,597.41,1.24721465]
[1741217413649,0.96757872,597.92,597.41,1.24721465]
[1741217413849,1.20782093,597.92,597.41,1.24721465]
[1741217414048,2.17539965,597.92,597.42,1.24721465]
[1741217414249,0.96757872,597.91,597.42,1.24721465]
[1741217414449,0.96757872,597.95,597.42,1.24721465]
[1741217414650,0.96757872,597.94,597.42,1.24721465]
[1741217414850,0.96757872,597.93,597.42,1.24721465]
[1741217415045,0.96757872,597.92,597.42,1.24721465]
[1741217415251,0.96757872,597.91,597.42,1.24721465]
[1741217415557,0.96757872,597.9,597.42,1.24721465]
[1741217415750,0.96757872,597.93,597.42,1.24721465]
[1741217415945,0.96757872,597.92,597.42,1.24721465]
[1741217416148,0.96757872,597.91,597.42,1.24721465]
[1741217416346,0.96757872,597.9,597.42,1.24721465]
[1741217416550,2.17539965,597.92,597.42,1.24721465]
[1741217416745,0.96757872,597.91,597.42,1.24721465]
[1741217416952,0.96757872,597.9,597.42,1.24721465]
[1741217417246,0.96757872,597.89,597.42,1.24721465]
[1741217417448,0.96757872,597.9,597.42,1.24721465]
[1741217417647,1.20782093,597.91,597.42,1.24721465]
[1741217417850,0.96917429,597.9,597.42,1.24721465]
[1741217418053,1.20782093,597.99,597.42,1.24721465]
[1741217418255,2.17699964,597.98,597.42,1.24721465]
[1741217418455,0.96917871,597.97,597.42,1.24721465]
[1741217418650,0.96917871,597.96,597.42,1.24721465]
[1741217418855,0.96917871,597.95,597.42,1.24721465]
[1741217419154,0.96917871,597.94,597.42,1.24721465]
[1741217419453,0.96917871,597.93,597.42,1.24721465]
[1741217419654,2.17699964,597.92,597.42,1.24721465]
[1741217419854,0.96917871,597.91,597.42,1.24721465]
[1741217420054,0.96917871,597.9,597.42,1.24721465]
[1741217420250,0.96917871,597.89,597.42,1.24721465]
[1741217420456,1.20782093,597.91,597.42,1.24721465]
[1741217420650,0.96937297,597.9,597.42,1.24721465]
[1741217420958,0.96937297,597.89,597.42,1.24721465]
[1741217421156,1.55058284,598.0,597.42,1.24721465]
[1741217421356,2.51997841,597.99,597.42,1.24721465]
[1741217421560,0.96939557,597.98,597.42,1.24721465]
[1741217421759,0.96939557,597.97,597.42,1.24721465]
[1741217422058,0.96939557,597.96,597.42,1.24721465]
[1741217422259,0.96939557,597.95,597.42,1.24721465]
[1741217422458,0.96939557,597.94,597.42,1.24721465]
[1741217422760,0.96939557,597.93,597.42,1.24721465]
[1741217422964,0.96939557,597.92,597.42,1.24721465]
[1741217423155,0.96939557,597.91,597.42,1.24721465]
[1741217423454,0.96939557,597.9,597.42,1.24721465]
[1741217423667,0.96939557,597.89,597.42,1.24721465]
[1741217423861,0.96939557,597.88,597.42,1.24721465]
[1741217424061,0.96939557,597.87,597.42,1.24721465]
[1741217424261,0.96939557,597.86,597.42,1.24721465]
[1741217424461,1.55108496,598.0,597.42,1.24721465]
[1741217424670,2.52051465,597.99,597.42,1.24721465]
[1741217424857,2.52051465,597.98,597.42,1.24721465]
[1741217425053,2.52051465,597.97,597.42,1.24721465]
[1741217425262,3.72999518,597.97,597.42,1.24721465]
[1741217425465,2.52051465,597.96,597.42,1.24721465]
[1741217425663,2.17891022,597.95,597.42,1.24721465]
[1741217425958,0.96942969,597.94,597.42,1.24721465]
[1741217426263,0.96942969,597.93,597.42,1.24721465]
[1741217426464,0.96942969,597.92,597.42,1.24721465]
[1741217426762,0.96942969,597.91,597.42,1.24721465]
[1741217426963,0.96942969,597.9,597.42,1.24721465]
[1741217427156,2.17891022,597.89,597.42,1.24721465]
[1741217427361,0.96942969,597.88,597.39,1.24721465]
[1741217427561,1.20948053,597.89,597.39,1.24721465]
[1741217427762,0.96946168,597.88,597.39,1.24721465]
[1741217427964,0.96946168,597.87,597.39,1.24721465]
[1741217428266,1.20952779,597.88,597.39,1.24721465]
[1741217428463,0.96946584,597.87,597.39,1.24721465]
[1741217428666,1.20952779,597.88,597.39,1.24721465]
[1741217428862,0.96946573,597.87,597.39,1.24721465]
[1741217429063,1.20952779,597.88,597.39,1.24721465]
[1741217429364,0.96949125,597.87,597.39,1.24721465]
[1741217429661,0.96949125,597.87,597.38,0.162]
[1741217430057,0.96949125,597.86,597.38,0.162]
[1741217430260,1.20952779,597.88,597.38,0.162]
[1741217431564,0.96959178,597.87,597.38,0.162]
[1741217432265,1.20952779,597.88,597.38,0.162]
[1741217432266,0.96959178,597.86,597.38,0.162]
[1741217432864,1.20952779,597.88,597.38,0.162]
[1741217433265,0.96964432,597.87,597.38,0.162]
[1741217433461,0.96964432,597.86,597.38,0.162]
[1741217433659,2.05321227,598.0,597.38,0.162]
[1741217433863,2.52114167,597.99,597.38,0.162]
[1741217434063,2.52114167,597.98,597.38,0.162]
[1741217434365,0.96970607,597.97,597.38,1.40921465]
[1741217434558,0.96970607,597.96,597.38,1.40921465]
[1741217434758,2.17953063,597.95,597.38,1.40921465]
[1741217434962,0.96970607,597.94,597.38,1.40921465]
[1741217435163,0.96970607,597.93,597.38,1.40921465]
[1741217435362,0.96970607,597.92,597.38,1.40921465]
[1741217435563,0.96970607,597.91,597.38,1.40921465]
[1741217435764,0.96970607,597.9,597.38,1.40921465]
[1741217436065,0.96970607,597.89,597.38,1.40921465]
[1741217436265,0.96970607,597.88,597.38,1.40921465]
[1741217436460,0.96970607,597.87,597.38,1.40921465]
[1741217436665,2.0532899,598.01,597.38,1.40921465]
[1741217436958,2.52120124,598.0,597.38,1.40921465]
[1741217437159,3.73100677,597.99,597.38,1.40921465]
[1741217437364,3.02298268,597.98,597.38,1.40921465]
[1741217437568,2.52120124,597.97,597.38,1.40921465]
[1741217437767,2.52120124,597.96,597.38,1.40921465]
[1741217437966,2.52120124,597.95,597.38,1.40921465]
[1741217438266,2.52120124,597.94,597.38,1.40921465]
[1741217438566,0.96969278,597.93,597.38,1.40921465]
[1741217438866,1.20980553,597.94,597.38,1.40921465]
[1741217438867,0.96969278,597.92,597.4,1.24721465]
[1741217439066,0.96969278,597.91,597.4,1.24721465]
[1741217439263,0.96969278,597.9,597.4,1.24721465]
[1741217439467,0.96969278,597.89,597.4,1.24721465]
[1741217439666,0.96969278,597.88,597.4,1.24721465]
[1741217439867,0.96969278,597.87,597.4,1.24721465]
[1741217440067,1.20980553,597.88,597.4,1.24721465]
[1741217440367,0.96962292,597.87,597.4,1.24721465]